fUST/lending_fUST_20250220
["ID","MTS","AMOUNT","RATE_DAILY","PERIOD"]
[353763348,1740017446559,-500.0,0.00014438,2]
[353763349,1740017446569,-500.0,0.00014438,2]
[353763350,1740017446579,-3280.49,0.00014438,2]
[353763351,1740017446588,-500.0,0.00014438,2]
[353763352,1740017446598,-1035.0,0.00014438,2]
[353763353,1740017446607,-814.25,0.00014438,2]
[353763354,1740017446617,-1090.48,0.00014438,2]
[353763355,1740017446627,-527.39675197,0.00014438,2]
[353763356,1740017446637,-505.07,0.00014438,2]
[353763357,1740017446647,-2436.53,0.00014438,2]
[353763358,1740017446657,-554.57,0.00014438,2]
[353763359,1740017446667,-8473.28,0.00014438,2]
[353763360,1740017446679,-500.0,0.00014438,2]
[353763361,1740017446690,-500.0,0.00014438,2]
[353763362,1740017446704,-475.96401748,0.00014468,2]
[353763363,1740017446713,-151.0,0.000145,2]
[353763364,1740017446723,-173.54186817,0.0001452,2]
[353763365,1740017446732,-507.53,0.0001452,2]
[353763366,1740017446742,-500.0,0.0001452,2]
[353763367,1740017446752,-735.06,0.0001452,2]
[353763368,1740017446764,-1171.69,0.0001452,2]
[353763369,1740017446775,-871.97,0.0001452,2]
[353763370,1740017446784,-500.0,0.0001452,2]
[353763371,1740017446793,-717.77,0.0001452,2]
[353763372,1740017446803,-567.46,0.0001452,2]
[353763373,1740017446812,-500.0,0.0001452,2]
[353763374,1740017446822,-266.85465485,0.0001452,2]
[353763375,1740017446832,-500.0,0.0001452,2]
[353763376,1740017446844,-3280.49,0.0001452,2]
[353763377,1740017446854,-500.0,0.0001452,2]
[353763378,1740017446864,-1035.0,0.0001452,2]
[353763379,1740017446874,-814.25,0.0001452,2]
[353763380,1740017446884,-1090.48,0.0001452,2]
[353763381,1740017446894,-505.07,0.0001452,2]
[353763382,1740017446904,-2436.53,0.0001452,2]
[353763383,1740017446915,-554.57,0.0001452,2]
[353763384,1740017446928,-8473.28,0.0001452,2]
[353763385,1740017446938,-500.0,0.0001452,2]
[353763386,1740017446947,-500.0,0.0001452,2]
[353763387,1740017446956,-151.0,0.000146,2]
[353763388,1740017446967,-507.53,0.00014602,2]
[353763389,1740017446977,-500.0,0.00014602,2]
[353763390,1740017446987,-735.06,0.00014602,2]
[353763391,1740017446997,-1171.69,0.00014602,2]
[353763392,1740017447006,-871.97,0.00014602,2]
[353763393,1740017447016,-500.0,0.00014602,2]
[353763394,1740017447026,-717.77,0.00014602,2]
[353763395,1740017447036,-567.46,0.00014602,2]
[353763396,1740017447046,-500.0,0.00014602,2]
[353763397,1740017447055,-500.0,0.00014602,2]
[353763398,1740017447065,-3280.49,0.00014602,2]
[353763399,1740017447075,-1035.0,0.00014602,2]
[353763400,1740017447085,-814.25,0.00014602,2]
[353763401,1740017447095,-1090.48,0.00014602,2]
[353763402,1740017447105,-505.07,0.00014602,2]
[353763403,1740017447114,-2436.53,0.00014602,2]
[353763404,1740017447124,-554.57,0.00014602,2]
[353763405,1740017447134,-8473.28,0.00014602,2]
[353763406,1740017447144,-473.83060089,0.00014602,2]
[353763407,1740017447153,-500.0,0.00014602,2]
[353763408,1740017447163,-1000.0,0.00014627,2]
[353763409,1740017447177,-1000.0,0.00014627,2]
[353763410,1740017447187,-397.753,0.00014629,2]
[353763411,1740017447197,-500.0,0.00014648,2]
[353763412,1740017447207,-507.53,0.00014684,2]
[353763413,1740017447218,-500.0,0.00014684,2]
[353763414,1740017447227,-735.06,0.00014684,2]
[353763415,1740017447237,-1171.69,0.00014684,2]
[353763416,1740017447247,-871.97,0.00014684,2]
[353763417,1740017447258,-500.0,0.00014684,2]
[353763418,1740017447268,-717.77,0.00014684,2]
[353763419,1740017447278,-567.46,0.00014684,2]
[353763420,1740017447289,-500.0,0.00014684,2]
[353763421,1740017447299,-500.0,0.00014684,2]
[353763422,1740017447309,-3280.49,0.00014684,2]
[353763423,1740017447320,-1035.0,0.00014684,2]
[353763424,1740017447329,-814.25,0.00014684,2]
[353763425,1740017447339,-1090.48,0.00014684,2]
[353763426,1740017447350,-505.07,0.00014684,2]
[353763427,1740017447360,-2436.53,0.00014684,2]
[353763428,1740017447369,-554.57,0.00014684,2]
[353763429,1740017447379,-8473.28,0.00014684,2]
[353763430,1740017447390,-2317.6565224,0.00014699,2]
[353763431,1740017447401,-151.0,0.000147,2]
[353763432,1740017447411,-151.0,0.000147,2]
[353763433,1740017447422,-1000.0,0.00014721,2]
[353763434,1740017447432,-1314.632,0.0001475,2]
[353763435,1740017447442,-172.077,0.0001475,2]
[353763436,1740017447451,-1000.0,0.00014751,2]
[353763437,1740017447461,-13275.78028017,0.00014758,2]
[353763438,1740017447471,-507.53,0.00014767,2]
[353763439,1740017447481,-500.0,0.00014767,2]
[353763440,1740017447490,-735.06,0.00014767,2]
[353763441,1740017447500,-1171.69,0.00014767,2]
[353763442,1740017447510,-871.97,0.00014767,2]
[353763443,1740017447520,-500.0,0.00014767,2]
[353763444,1740017447529,-717.77,0.00014767,2]
[353763445,1740017447539,-567.46,0.00014767,2]
[353763446,1740017447549,-500.0,0.00014767,2]
[353763447,1740017447560,-500.0,0.00014767,2]
[353763448,1740017447569,-3280.49,0.00014767,2]
[353763449,1740017447579,-1035.0,0.00014767,2]
[353763450,1740017447589,-814.25,0.00014767,2]
[353763451,1740017447599,-1090.48,0.00014767,2]
[353763452,1740017447609,-505.07,0.00014767,2]
[353763453,1740017447619,-2436.53,0.00014767,2]
[353763454,1740017447629,-554.57,0.00014767,2]
[353763455,1740017447639,-8473.28,0.00014767,2]
[353763456,1740017447648,-1000.0,0.00014795,2]
[353763457,1740017447657,-828.75654214,0.00014795,2]
[353763458,1740017447668,-502.21670596,0.000148,2]
[353763459,1740017447678,-502.21670596,0.000148,2]
[353763460,1740017447688,-502.21670596,0.000148,2]
[353763461,1740017447699,-502.21670596,0.000148,2]
[353763462,1740017447709,-502.21670596,0.000148,2]
[353763463,1740017447718,-502.21670596,0.000148,2]
[353763464,1740017447728,-502.21670596,0.000148,2]
[353763465,1740017447738,-502.21670596,0.000148,2]
[353763466,1740017447748,-502.21670596,0.000148,2]
[353763467,1740017447758,-502.21670596,0.000148,2]
[353763468,1740017447771,-502.21670596,0.000148,2]
[353763469,1740017447781,-502.21670596,0.000148,2]
[353763470,1740017447791,-502.21670596,0.000148,2]
[353763471,1740017447801,-502.21670596,0.000148,2]
[353763472,1740017447813,-502.21670596,0.000148,2]
[353763473,1740017447824,-502.21670596,0.000148,2]
[353763474,1740017447834,-502.21670596,0.000148,2]
[353763475,1740017447845,-502.21670596,0.000148,2]
[353763476,1740017447855,-502.21670596,0.000148,2]
[353763477,1740017447865,-502.21,0.000148,2]
[353763478,1740017447875,-153.24954113,0.000148,2]
[353763479,1740017447885,-153.24954113,0.000148,2]
[353763480,1740017447895,-153.24954113,0.000148,2]
[353763481,1740017447904,-153.24954113,0.000148,2]
[353763482,1740017447914,-153.24954113,0.000148,2]
[353763483,1740017447925,-153.24954113,0.000148,2]
[353763484,1740017447934,-153.24954113,0.000148,2]
[353763485,1740017447943,-153.24,0.000148,2]
[353763486,1740017447954,-151.0,0.000148,2]
[353763487,1740017447964,-151.0,0.000148,2]
[353763488,1740017447973,-200.0,0.000148,2]
[353763489,1740017447984,-200.0,0.000148,2]
[353763490,1740017447993,-200.0,0.000148,3]
[353763491,1740017448003,-200.0,0.000148,3]
[353763492,1740017448014,-200.0,0.000148,4]
[353763493,1740017448023,-200.0,0.000148,4]
[353763494,1740017448033,-200.0,0.000148,4]
[353763495,1740017448043,-19866.6577959,0.000148,2]
[353763496,1740017448052,-1171.83898057,0.000148,2]
[353763497,1740017448062,-1171.83898057,0.000148,2]
[353763498,1740017448072,-1171.83898057,0.000148,2]
[353763499,1740017448082,-1171.83898057,0.000148,2]
[353763500,1740017448092,-1171.83898057,0.000148,2]
[353763501,1740017448102,-1171.83898057,0.000148,2]
[353763502,1740017448128,-1171.83898057,0.000148,2]
[353763503,1740017448140,-1171.83898057,0.000148,2]
[353763504,1740017448149,-1171.83898057,0.000148,2]
[353763505,1740017448159,-1171.83898057,0.000148,2]
[353763506,1740017448170,-1171.83898057,0.000148,2]
[353763507,1740017448180,-1171.83898057,0.000148,2]
[353763508,1740017448190,-1171.83898057,0.000148,2]
[353763509,1740017448199,-1171.83898057,0.000148,2]
[353763510,1740017448209,-1171.83898057,0.000148,2]
[353763511,1740017448219,-1171.83898057,0.000148,2]
[353763512,1740017448230,-1171.83898057,0.000148,2]
[353763513,1740017448241,-1171.83898057,0.000148,2]
[353763514,1740017448251,-1171.83898057,0.000148,2]
[353763515,1740017448262,-1171.83,0.000148,2]
[353763516,1740017448272,-150.56095269,0.000148,2]
[353763517,1740017448282,-150.56095269,0.000148,2]
[353763518,1740017448293,-150.56095269,0.000148,2]
[353763519,1740017448302,-150.56095269,0.000148,2]
[353763520,1740017448313,-150.56095269,0.000148,2]
[353763521,1740017448323,-150.56095269,0.000148,2]
[353763522,1740017448334,-150.56095269,0.000148,2]
[353763523,1740017448344,-150.56095269,0.000148,2]
[353763524,1740017448354,-150.56095269,0.000148,2]
[353763525,1740017448365,-150.56095269,0.000148,2]
[353763526,1740017448376,-150.56095269,0.000148,2]
[353763527,1740017448386,-150.56095269,0.000148,2]
[353763528,1740017448396,-150.56095269,0.000148,2]
[353763529,1740017448407,-150.56095269,0.000148,2]
[353763530,1740017448419,-150.56095269,0.000148,2]
[353763531,1740017448429,-150.56095269,0.000148,2]
[353763532,1740017448440,-150.56095269,0.000148,2]
[353763533,1740017448450,-150.56095269,0.000148,2]
[353763534,1740017448461,-150.56,0.000148,2]
[353763535,1740017448471,-5339.03731257,0.000148,2]
[353763536,1740017448482,-507.53,0.00014849,2]
[353763537,1740017448492,-500.0,0.00014849,2]
[353763538,1740017448503,-735.06,0.00014849,2]
[353763539,1740017448513,-1171.69,0.00014849,2]
[353763540,1740017448523,-871.97,0.00014849,2]
[353763541,1740017448533,-500.0,0.00014849,2]
[353763542,1740017448543,-717.77,0.00014849,2]
[353763543,1740017448553,-567.46,0.00014849,2]
[353763544,1740017448563,-500.0,0.00014849,2]
[353763545,1740017448573,-500.0,0.00014849,2]
[353763546,1740017448583,-3280.49,0.00014849,2]
[353763547,1740017448594,-1035.0,0.00014849,2]
[353763548,1740017448604,-814.25,0.00014849,2]
[353763549,1740017448613,-1090.48,0.00014849,2]
[353763550,1740017448623,-505.07,0.00014849,2]
[353763551,1740017448632,-2436.53,0.00014849,2]
[353763552,1740017448642,-554.57,0.00014849,2]
[353763553,1740017448651,-8473.28,0.00014849,2]
[353763554,1740017448661,-1000.0,0.0001487,2]
[353763555,1740017448672,-1528.20444584,0.0001488,2]
[353763556,1740017448682,-274.00167003,0.00014882,2]
[353763557,1740017448691,-9169.22667504,0.0001489,2]
[353763558,1740017448700,-1000.0,0.00014894,2]
[353763559,1740017448710,-160.0,0.00014899,2]
[353763560,1740017448720,-160.0,0.00014899,2]
[353763561,1740017448730,-259088.55223218,0.000149,5]
[353763562,1740017448740,-29512.53048194,0.000149,5]
[353763563,1740017448751,-151.0,0.000149,2]
[353763564,1740017448762,-183.308202,0.000149,2]
[353763565,1740017448775,-935.0,0.000149,2]
[353763566,1740017448786,-151.084966,0.000149,2]
[353763567,1740017448795,-151.0,0.000149,2]
[353763568,1740017448806,-151.0,0.000149,2]
[353763569,1740017448816,-48650.40703402,0.000149,2]
[353763570,1740017448836,-720.41,0.000149,2]
[353763571,1740017448848,-24459.859939,0.000149,2]
[353763572,1740017448969,-632.77802642,0.000149,2]
[353763573,1740017449013,-500.0,0.00014684,2]
[353763574,1740017449023,-500.0,0.00014767,2]
[353763575,1740017449032,-396.18960521,0.00014849,2]
[353763576,1740017449041,-238331.25000608,0.000149,2]
[353763577,1740017449082,-557.1188801,0.00014219,2]
[353763578,1740017449091,-21346.1211199,0.000149,2]
[353763584,1740018511100,1036.61682055,0.00018167,60]
[353763587,1740018523859,164.299048,9.041e-05,2]
[353763619,1740018632077,-600.0,0.00013068,2]
[353763620,1740018632087,-300.0,0.00013697,2]
[353763621,1740018632097,-33.12684086,0.00013698,2]
[353763622,1740018632132,-466.87315914,0.00013698,2]
[353763623,1740018632142,-512.27054454,0.00013698,2]
[353763624,1740018632151,-500.0,0.00013698,2]
[353763625,1740018632167,-283.38203022,0.00013698,2]
[353763626,1740018632181,-500.0,0.00013698,2]
[353763627,1740018632192,-500.0,0.00013698,2]
[353763628,1740018632203,-500.0,0.00013698,2]
[353763629,1740018632214,-500.0,0.00013698,2]
[353763630,1740018632224,-500.0,0.00013698,2]
[353763631,1740018632238,-300.06609772,0.00013698,2]
[353763632,1740018632258,-199.93390228,0.00013698,2]
[353763633,1740018632267,-500.0,0.00013698,2]
[353763634,1740018632277,-500.0,0.00013698,2]
[353763635,1740018632287,-500.0,0.00013698,2]
[353763636,1740018632296,-343.98942279,0.00013698,2]
[353763637,1740018632305,-500.0,0.00013698,2]
[353763638,1740018632315,-500.0,0.00013698,2]
[353763639,1740018632324,-504.06244333,0.00013698,2]
[353763640,1740018632333,-253.913462,0.00013698,2]
[353763641,1740018632353,-246.086538,0.00013698,2]
[353763642,1740018632362,-506.85674753,0.00013698,2]
[353763643,1740018632371,-500.0,0.00013698,2]
[353763644,1740018632381,-500.0,0.00013698,2]
[353763646,1740018632390,-57.87237049,0.00013698,2]
[353763648,1740018632401,-300.0,0.00013698,2]
[353763658,1740018637812,-142.12762951,0.00013698,2]
[353763659,1740018637822,-236.75783281,0.00013698,2]
[353763660,1740018637832,-500.0,0.00013698,2]
[353763661,1740018637842,-500.0,0.00013698,2]
[353763662,1740018637852,-500.0,0.00013698,2]
[353763663,1740018637862,-500.0,0.00013698,2]
[353763664,1740018637871,-500.0,0.00013698,2]
[353763665,1740018637880,-500.0,0.00013698,2]
[353763666,1740018637890,-500.0,0.00013698,2]
[353763667,1740018637900,-500.0,0.00013698,2]
[353763668,1740018637910,-500.0,0.00013698,2]
[353763669,1740018637919,-500.0,0.00013698,2]
[353763670,1740018637930,-500.0,0.00013698,2]
[353763671,1740018637939,-500.0,0.00013698,2]
[353763672,1740018637950,-500.0,0.00013698,2]
[353763673,1740018637960,-500.0,0.00013698,2]
[353763674,1740018637971,-500.0,0.00013698,2]
[353763675,1740018637980,-500.0,0.00013698,2]
[353763676,1740018637990,-500.0,0.00013698,2]
[353763677,1740018637999,-244.56848889,0.00013698,2]
[353763678,1740018638012,-191.79350629,0.00013698,2]
[353763679,1740018638021,-503.70091696,0.00013698,2]
[353763680,1740018638031,-500.0,0.00013698,2]
[353763681,1740018638041,-154.50557676,0.00013698,2]
[353763682,1740018638053,-347.26051075,0.00013698,2]
[353763683,1740018638062,-401.12447812,0.00013698,2]
[353763684,1740018638071,-473.76571165,0.00013698,2]
[353763685,1740018638081,-501.59471906,0.00013698,2]
[353763686,1740018638091,-500.0,0.00013698,2]
[353763687,1740018638099,-167.67646269,0.00013698,2]
[353763688,1740018638109,-500.0,0.00013698,2]
[353763689,1740018638119,-504.54323768,0.00013698,2]
[353763690,1740018638128,-501.9227434,0.00013698,2]
[353763691,1740018638138,-500.0,0.00013698,2]
[353763692,1740018638147,-503.60678917,0.00013698,2]
[353763693,1740018638157,-504.08221958,0.00013698,2]
[353763694,1740018638169,-500.0,0.00013698,2]
[353763695,1740018638180,-505.0753731,0.00013698,2]
[353763696,1740018638190,-500.0,0.00013698,2]
[353763697,1740018638199,-505.03334629,0.00013698,2]
[353763698,1740018638210,-500.0,0.00013698,2]
[353763699,1740018638219,-500.0,0.00013698,2]
[353763700,1740018638229,-505.38297307,0.00013698,2]
[353763701,1740018638239,-502.80281765,0.00013698,2]
[353763702,1740018638248,-500.0,0.00013698,2]
[353763703,1740018638258,-379.21452811,0.00013698,2]
[353763704,1740018638268,-500.0,0.00013698,2]
[353763705,1740018638278,-500.0,0.00013698,2]
[353763706,1740018638288,-221.72903967,0.00013698,2]
[353763707,1740018638297,-501.68615155,0.00013698,2]
[353763708,1740018638306,-267.67732386,0.00013698,2]
[353763709,1740018638319,-232.32267614,0.00013698,2]
[353763710,1740018638328,-166.46703405,0.00013698,2]
[353763711,1740018638339,-336.58917831,0.00013698,2]
[353763712,1740018638348,-502.80141362,0.00013698,2]
[353763713,1740018638358,-500.0,0.00013698,2]
[353763714,1740018638373,-500.0,0.00013698,2]
[353763715,1740018638382,-500.0,0.00013698,2]
[353763716,1740018638391,-500.0,0.00013698,2]
[353763717,1740018638401,-500.0,0.00013698,2]
[353763718,1740018638411,-503.02718106,0.00013698,2]
[353763719,1740018638421,-520.69,0.00013698,2]
[353763720,1740018638430,-502.04713112,0.00013698,2]
[353763721,1740018638440,-500.0,0.00013698,2]
[353763722,1740018638449,-836.21,0.00013698,2]
[353763723,1740018638459,-502.60469467,0.00013698,2]
[353763724,1740018638469,-500.0,0.00013698,2]
[353763725,1740018638478,-502.27167066,0.00013698,2]
[353763726,1740018638487,-500.0,0.00013698,2]
[353763727,1740018638497,-505.42808029,0.00013698,2]
[353763728,1740018638506,-500.0,0.00013698,2]
[353763729,1740018638516,-502.35941768,0.00013698,2]
[353763730,1740018638526,-500.0,0.00013698,2]
[353763731,1740018638535,-500.0,0.00013698,2]
[353763732,1740018638544,-626.98,0.00013698,2]
[353763733,1740018638553,-502.44694421,0.00013698,2]
[353763734,1740018638563,-500.0,0.00013698,2]
[353763735,1740018638575,-500.0,0.00013698,2]
[353763736,1740018638584,-510.03,0.00013698,2]
[353763737,1740018638594,-500.0,0.00013698,2]
[353763738,1740018638603,-500.0,0.00013698,2]
[353763739,1740018638612,-500.0,0.00013698,2]
[353763740,1740018638622,-500.0,0.00013698,2]
[353763741,1740018638631,-500.0,0.00013698,2]
[353763742,1740018638641,-2263.48,0.00013698,2]
[353763743,1740018638650,-500.0,0.00013698,2]
[353763744,1740018638660,-500.0,0.00013698,2]
[353763745,1740018638669,-500.0,0.00013698,2]
[353763746,1740018638679,-461.07437101,0.00013698,2]
[353763747,1740018638688,-321.8530994,0.00013698,2]
[353763748,1740018638697,-500.0,0.00013698,2]
[353763749,1740018638706,-500.0,0.00013698,2]
[353763750,1740018638716,-500.0,0.00013698,2]
[353763751,1740018638725,-743.92,0.00013698,2]
[353763752,1740018638735,-904.34,0.00013698,2]
[353763753,1740018638744,-904.34,0.00013698,2]
[353763754,1740018638753,-904.34,0.00013698,2]
[353763755,1740018638763,-565.14,0.00013698,2]
[353763756,1740018638772,-500.0,0.00013698,2]
[353763757,1740018638782,-527.39675197,0.00013698,2]
[353763758,1740018638791,-1004.94747901,0.00013698,2]
[353763759,1740018638807,-630.70252099,0.00013698,2]
[353763760,1740018638816,-304.29747901,0.00013698,2]
[353763761,1740018638828,-195.70252099,0.00013698,2]
[353763762,1740018638837,-500.0,0.00013698,2]
[353763763,1740018638846,-803.18,0.00013698,2]
[353763764,1740018638855,-500.0,0.00013698,2]
[353763765,1740018638864,-500.0,0.00013698,2]
[353763766,1740018638873,-500.98062532,0.00013698,2]
[353763767,1740018638883,-503.71238754,0.00013698,2]
[353763768,1740018638892,-5996.42446615,0.00013698,2]
[353763769,1740018638907,-53.06553385,0.00013698,2]
[353763770,1740018638917,-500.0,0.00013698,2]
[353763771,1740018638927,-500.0,0.00013698,2]
[353763772,1740018638937,-500.0,0.00013698,2]
[353763773,1740018638947,-157.84752274,0.00013698,2]
[353763774,1740018638956,-500.0,0.00013698,2]
[353763775,1740018638967,-500.0,0.00013698,2]
[353763776,1740018638976,-500.0,0.00013698,2]
[353763777,1740018638985,-500.0,0.00013698,2]
[353763778,1740018638994,-175.428824,0.00013699,2]
[353763779,1740018639003,-466.40087511,0.00013699,2]
[353763780,1740018639012,-904.34,0.00013779,2]
[353763781,1740018639021,-904.34,0.00013779,2]
[353763782,1740018639031,-500.0,0.0001378,2]
[353763783,1740018639040,-627.53242676,0.0001378,2]
[353763784,1740018639050,-509.94598532,0.0001378,2]
[353763785,1740018639059,-500.0,0.0001378,2]
[353763786,1740018639069,-500.0,0.0001378,2]
[353763787,1740018639078,-500.0,0.0001378,2]
[353763788,1740018639087,-500.0,0.0001378,2]
[353763789,1740018639097,-500.0,0.0001378,2]
[353763790,1740018639106,-500.0,0.0001378,2]
[353763791,1740018639115,-500.0,0.0001378,2]
[353763792,1740018639124,-500.0,0.0001378,2]
[353763793,1740018639133,-500.0,0.0001378,2]
[353763794,1740018639143,-496.56,0.0001378,2]
[353763795,1740018639152,-500.0,0.0001378,2]
[353763796,1740018639164,-500.0,0.0001378,2]
[353763797,1740018639173,-500.0,0.0001378,2]
[353763798,1740018639183,-209.53515842,0.0001378,2]
[353763799,1740018639192,-503.90674129,0.0001378,2]
[353763800,1740018639201,-635.83316996,0.0001378,2]
[353763801,1740018639210,-466.34678386,0.0001378,2]
[353763802,1740018639220,-500.0,0.0001378,2]
[353763803,1740018639230,-160.49,0.0001378,2]
[353763804,1740018639241,-500.0,0.0001378,2]
[353763805,1740018639253,-500.0,0.0001378,2]
[353763806,1740018639262,-383.43461363,0.0001378,2]
[353763807,1740018639273,-500.0,0.0001378,2]
[353763808,1740018639282,-500.0,0.0001378,2]
[353763809,1740018639292,-520.69,0.0001378,2]
[353763810,1740018639302,-836.21,0.0001378,2]
[353763811,1740018639311,-500.0,0.0001378,2]
[353763812,1740018639320,-500.0,0.0001378,2]
[353763813,1740018639329,-506.84957637,0.0001378,2]
[353763814,1740018639339,-626.98,0.0001378,2]
[353763815,1740018639348,-500.0,0.0001378,2]
[353763816,1740018639357,-500.0,0.0001378,2]
[353763817,1740018639367,-510.03,0.0001378,2]
[353763818,1740018639376,-500.0,0.0001378,2]
[353763819,1740018639386,-500.0,0.0001378,2]
[353763820,1740018639396,-500.0,0.0001378,2]
[353763821,1740018639407,-500.0,0.0001378,2]
[353763822,1740018639416,-500.0,0.0001378,2]
[353763823,1740018639425,-2263.48,0.0001378,2]
[353763824,1740018639434,-500.0,0.0001378,2]
[353763825,1740018639444,-500.0,0.0001378,2]
[353763826,1740018639454,-500.0,0.0001378,2]
[353763827,1740018639463,-743.92,0.0001378,2]
[353763828,1740018639473,-565.14,0.0001378,2]
[353763829,1740018639482,-1635.65,0.0001378,2]
[353763830,1740018639491,-500.0,0.0001378,2]
[353763831,1740018639500,-500.0,0.0001378,2]
[353763832,1740018639509,-803.18,0.0001378,2]
[353763833,1740018639519,-500.0,0.0001378,2]
[353763834,1740018639528,-500.0,0.0001378,2]
[353763835,1740018639537,-6049.49,0.0001378,2]
[353763836,1740018639547,-500.0,0.0001378,2]
[353763837,1740018639556,-500.0,0.0001378,2]
[353763838,1740018639566,-500.0,0.0001378,2]
[353763839,1740018639574,-904.34,0.00013862,2]
[353763840,1740018639584,-500.0,0.00013863,2]
[353763841,1740018639593,-520.69,0.00013863,2]
[353763842,1740018639603,-836.21,0.00013863,2]
[353763843,1740018639612,-626.98,0.00013863,2]
[353763844,1740018639621,-500.0,0.00013863,2]
[353763845,1740018639632,-510.03,0.00013863,2]
[353763846,1740018639641,-500.0,0.00013863,2]
[353763847,1740018639651,-500.0,0.00013863,2]
[353763848,1740018639660,-2263.48,0.00013863,2]
[353763849,1740018639670,-500.0,0.00013863,2]
[353763851,1740018639680,-500.0,0.00013863,2]
[353763852,1740018639690,-500.0,0.00013863,2]
[353763853,1740018639699,-743.92,0.00013863,2]
[353763854,1740018639709,-565.14,0.00013863,2]
[353763855,1740018639719,-1635.65,0.00013863,2]
[353763856,1740018639728,-500.0,0.00013863,2]
[353763857,1740018639738,-803.18,0.00013863,2]
[353763858,1740018639758,-500.0,0.00013863,2]
[353763859,1740018639768,-6049.49,0.00013863,2]
[353763860,1740018639777,-500.0,0.00013863,2]
[353763861,1740018639787,-500.0,0.00013863,2]
[353763862,1740018639796,-500.0,0.00013863,2]
[353763863,1740018639806,-179.67658215,0.0001392,2]
[353763864,1740018639815,-904.34,0.00013944,2]
[353763865,1740018639825,-173.54186817,0.00013945,2]
[353763866,1740018639835,-520.69,0.00013945,2]
[353763867,1740018639844,-836.21,0.00013945,2]
[353763868,1740018639854,-626.98,0.00013945,2]
[353763869,1740018639863,-500.0,0.00013945,2]
[353763870,1740018639873,-510.03,0.00013945,2]
[353763871,1740018639883,-500.0,0.00013945,2]
[353763872,1740018639892,-500.0,0.00013945,2]
[353763873,1740018639903,-2263.48,0.00013945,2]
[353763874,1740018639912,-500.0,0.00013945,2]
[353763876,1740018639922,-500.0,0.00013945,2]
[353763878,1740018639932,-500.0,0.00013945,2]
[353763880,1740018639942,-743.92,0.00013945,2]
[353763882,1740018639952,-565.14,0.00013945,2]
[353763884,1740018639962,-1635.65,0.00013945,2]
[353763886,1740018639971,-500.0,0.00013945,2]
[353763888,1740018639980,-803.18,0.00013945,2]
[353763890,1740018639990,-500.0,0.00013945,2]
[353763891,1740018639999,-6049.49,0.00013945,2]
[353763892,1740018640009,-500.0,0.00013945,2]
[353763893,1740018640018,-500.0,0.00013945,2]
[353763894,1740018640028,-500.0,0.00013945,2]
[353763895,1740018640037,-500.0,0.00013972,2]
[353763896,1740018640047,-904.34,0.00014025,2]
[353763897,1740018640056,-904.34,0.00014026,2]
[353763898,1740018640066,-520.69,0.00014027,2]
[353763899,1740018640075,-836.21,0.00014027,2]
[353763900,1740018640085,-626.98,0.00014027,2]
[353763901,1740018640094,-500.0,0.00014027,2]
[353763902,1740018640103,-510.03,0.00014027,2]
[353763903,1740018640112,-500.0,0.00014027,2]
[353763904,1740018640121,-500.0,0.00014027,2]
[353763905,1740018640131,-2263.48,0.00014027,2]